bitfinex-derivatives/quotes_BTCF0:USTF0_20230105
["timestamp","ask_amount","ask_price","bid_price","bid_amount"]
[1672957366428,4.30766106,16859.0,16858.0,5.01872701]
[1672957370642,4.30766106,16859.0,16858.0,4.92992636]
[1672957372847,4.30766106,16859.0,16858.0,5.01872281]
[1672957377371,4.30766106,16859.0,16858.0,4.41732281]
[1672957377582,4.30766106,16859.0,16858.0,5.01872281]
[1672957378423,4.30766106,16859.0,16858.0,4.41732281]
[1672957378844,4.30766106,16859.0,16858.0,5.01872281]
[1672957380429,4.30766106,16859.0,16858.0,4.92992636]
[1672957382314,4.30766106,16859.0,16858.0,4.32852636]
[1672957382531,4.30766106,16859.0,16858.0,4.92992636]
[1672957383473,4.30766106,16859.0,16858.0,5.01877134]
[1672957384520,4.30766106,16859.0,16858.0,4.92992636]
[1672957386636,4.30766106,16859.0,16858.0,5.01878819]
[1672957387565,4.30766106,16859.0,16858.0,4.71808819]
[1672957387781,4.30766106,16859.0,16858.0,5.01878819]
[1672957391141,4.30766106,16859.0,16858.0,4.71808819]
[1672957391357,4.30766106,16859.0,16858.0,5.01878819]
[1672957395447,4.30766106,16859.0,16858.0,4.92992636]
[1672957395658,4.30766106,16859.0,16858.0,5.01880309]
[1672957396521,4.30766106,16859.0,16858.0,4.92992636]
[1672957397136,4.30766106,16859.0,16858.0,5.01880887]
[1672957398413,4.30766106,16859.0,16858.0,4.41740887]
[1672957398729,4.30766106,16859.0,16858.0,5.01880887]
[1672957399141,4.30766106,16859.0,16858.0,4.41740887]
[1672957399357,4.30766106,16859.0,16858.0,5.01880887]
[1672957400502,4.30766106,16859.0,16858.0,4.92992636]
[1672957401782,4.30766106,16859.0,16858.0,4.32852636]
[1672957402408,4.30766106,16859.0,16858.0,4.92992636]
[1672957403866,4.30766106,16859.0,16858.0,4.92978989]
[1672957407448,4.30766106,16859.0,16858.0,5.01868703]
[1672957410493,4.30766106,16859.0,16858.0,4.88545317]
[1672957411027,4.30766106,16859.0,16858.0,5.01868703]
[1672957412277,4.30766106,16859.0,16858.0,4.88545317]
[1672957412489,4.30766106,16859.0,16858.0,5.01868703]
[1672957414176,4.30766106,16859.0,16858.0,4.41728703]
[1672957414378,4.30766106,16859.0,16858.0,5.01868703]
[1672957415852,4.30766106,16859.0,16858.0,4.88545317]
[1672957416283,4.30766106,16859.0,16858.0,5.01868703]
[1672957418269,4.30766106,16859.0,16858.0,4.41728703]
[1672957418476,4.30766106,16859.0,16858.0,5.01868703]
[1672957420370,4.30766106,16859.0,16858.0,4.41728703]
[1672957420682,4.30766106,16859.0,16858.0,5.01868703]
[1672957425304,4.30766106,16859.0,16858.0,4.88545317]
[1672957426248,4.30766106,16859.0,16858.0,4.28405317]
[1672957426459,4.30766106,16859.0,16858.0,4.88545317]
[1672957427934,4.30766106,16859.0,16858.0,5.01867484]
[1672957428459,4.30766106,16859.0,16858.0,4.88544098]
[1672957430249,4.30766106,16859.0,16858.0,4.28404098]
[1672957430461,4.30766106,16859.0,16858.0,4.58474098]
[1672957431083,4.30766106,16859.0,16858.0,4.28404098]
[1672957431293,4.30766106,16859.0,16858.0,4.58474098]
[1672957432235,4.30766106,16859.0,16858.0,4.28404098]
[1672957432661,4.30766106,16859.0,16858.0,4.88544098]
[1672957432873,4.30766106,16859.0,16858.0,5.01867484]
[1672957433282,4.27786213,16859.0,16858.0,5.01867484]
[1672957436971,4.27786213,16859.0,16858.0,4.88544098]
[1672957439291,4.27786213,16859.0,16858.0,4.58474098]
[1672957452324,4.27786213,16859.0,16858.0,4.28404098]
[1672957452545,4.27786213,16859.0,16858.0,4.58474098]
[1672957454319,4.27786213,16859.0,16858.0,4.28404098]
[1672957454538,4.27786213,16859.0,16858.0,4.58474098]
[1672957459264,4.27786213,16859.0,16858.0,4.28404098]
[1672957459471,4.27786213,16859.0,16858.0,4.58474098]
[1672957459901,4.27768272,16859.0,16858.0,4.71797484]
[1672957461780,4.27768272,16859.0,16858.0,4.41727484]
[1672957461995,4.27768272,16859.0,16858.0,4.71797484]
[1672957462944,4.27768272,16859.0,16858.0,4.28404098]
[1672957463260,4.27768272,16859.0,16858.0,4.58474098]
[1672957464727,4.27768272,16859.0,16858.0,4.71797484]
[1672957464940,4.27768272,16859.0,16858.0,4.58474098]
[1672957465993,4.27768272,16859.0,16858.0,4.71797484]
[1672957466308,4.27768272,16859.0,16858.0,4.58474098]
[1672957466516,4.27768272,16859.0,16858.0,4.71797484]
[1672957467778,4.27768272,16859.0,16858.0,4.58474098]
[1672957470612,4.27768272,16859.0,16858.0,4.28404098]
[1672957470828,4.27768272,16859.0,16858.0,4.58474098]
[1672957471242,4.24840615,16859.0,16858.0,4.58474098]
[1672957475557,4.24840615,16859.0,16858.0,4.28404098]
[1672957475765,4.24840615,16859.0,16858.0,4.58474098]
[1672957477445,4.24840615,16859.0,16858.0,4.28404098]
[1672957477658,4.24840615,16859.0,16858.0,4.88544098]
[1672957484476,4.24840615,16859.0,16858.0,4.58474098]
[1672957485327,4.24840615,16859.0,16858.0,4.28404098]
[1672957485642,4.24840615,16859.0,16858.0,5.01867484]
[1672957491207,4.24840615,16859.0,16858.0,4.41727484]
[1672957491426,4.24840615,16859.0,16858.0,5.01867484]
[1672957491733,4.24840615,16859.0,16858.0,4.41727484]
[1672957491938,4.24840615,16859.0,16858.0,5.01867484]
[1672957493001,4.24840615,16859.0,16858.0,4.88544098]
[1672957494266,4.24840615,16859.0,16858.0,4.58474098]
[1672957494584,4.24840615,16859.0,16858.0,4.88544098]
[1672957495635,4.24840615,16859.0,16858.0,4.28404098]
[1672957495944,4.24840615,16859.0,16858.0,4.88544098]
[1672957497097,4.84150615,16859.0,16858.0,4.88544098]
[1672957499309,4.84150615,16859.0,16858.0,4.28404098]
[1672957499510,4.84150615,16859.0,16858.0,4.58474098]
[1672957499932,4.84150615,16859.0,16858.0,4.49585603]
[1672957502040,4.84150615,16859.0,16858.0,4.58474098]
[1672957504661,4.84150615,16859.0,16858.0,4.49585603]
[1672957506138,4.84150615,16859.0,16858.0,4.58474098]
[1672957508138,4.84150615,16859.0,16858.0,4.49585603]
[1672957510455,4.84150615,16859.0,16858.0,4.19515603]
[1672957510666,4.84150615,16859.0,16858.0,4.49585603]
[1672957510872,4.84150615,16859.0,16858.0,4.19515603]
[1672957511082,4.84150615,16859.0,16858.0,4.49585603]
[1672957511711,4.84150615,16859.0,16858.0,4.58474098]
[1672957512027,4.84150615,16859.0,16858.0,4.49585603]
[1672957514555,4.84150615,16859.0,16858.0,4.58474098]
[1672957514971,4.84150615,16859.0,16858.0,4.71797484]
[1672957516336,4.24840615,16859.0,16858.0,4.71797484]
[1672957517707,4.24840615,16859.0,16858.0,5.01867484]
[1672957519382,4.24840615,16859.0,16858.0,4.92978989]
[1672957519593,4.24840615,16859.0,16858.0,5.01866117]
[1672957520337,4.22385447,16859.0,16858.0,5.01866117]
[1672957520854,4.22385447,16859.0,16858.0,5.01866062]
[1672957521597,4.22385447,16859.0,16858.0,4.92978989]
[1672957522011,4.22385447,16859.0,16858.0,5.01865639]
[1672957523277,4.22385447,16859.0,16858.0,4.88542253]
[1672957523491,4.22385447,16859.0,16858.0,5.01865639]
[1672957524009,4.22385447,16859.0,16858.0,4.41725639]
[1672957524327,4.22385447,16859.0,16858.0,4.88542253]
[1672957525489,4.22385447,16859.0,16858.0,5.01865639]
[1672957525691,4.22385447,16859.0,16858.0,4.88542253]
[1672957525898,4.22385447,16859.0,16858.0,4.41725639]
[1672957526109,4.22385447,16859.0,16858.0,5.01865639]
[1672957527063,4.22385447,16859.0,16858.0,4.88542253]
[1672957527276,4.22385447,16859.0,16858.0,5.01865639]
[1672957528646,4.22385447,16859.0,16858.0,4.41725639]
[1672957528858,4.22385447,16859.0,16858.0,5.01865639]
[1672957529584,4.22385447,16859.0,16858.0,4.88542253]
[1672957530527,4.22385447,16859.0,16858.0,5.01865639]
[1672957532010,4.22385447,16859.0,16858.0,4.41725639]
[1672957532215,4.22385447,16859.0,16858.0,5.01865639]
[1672957533373,4.22385447,16859.0,16858.0,4.88542253]
[1672957533583,4.22385447,16859.0,16858.0,5.01865639]
[1672957538314,4.22385447,16859.0,16858.0,4.92978989]
[1672957539066,4.22385447,16859.0,16858.0,4.32838989]
[1672957539267,4.22385447,16859.0,16858.0,5.0186454]
[1672957540954,4.22385447,16859.0,16858.0,4.92978989]
[1672957542006,4.22385447,16859.0,16858.0,5.01864747]
[1672957543478,4.22385447,16859.0,16858.0,4.41724747]
[1672957543791,4.22385447,16859.0,16858.0,5.01864747]
[1672957545675,4.22385447,16859.0,16858.0,4.41724747]
[1672957545890,4.22385447,16859.0,16858.0,5.01864747]
[1672957550728,4.22385447,16859.0,16858.0,4.41724747]
[1672957550938,4.22385447,16859.0,16858.0,5.01864747]
[1672957552840,4.22385447,16859.0,16858.0,4.92978989]
[1672957553675,4.22385447,16859.0,16858.0,4.32838989]
[1672957553990,4.22385447,16859.0,16858.0,4.92978989]
[1672957554821,4.22385447,16859.0,16858.0,4.32838989]
[1672957555035,4.22385447,16859.0,16858.0,4.92978989]
[1672957555659,4.22385447,16859.0,16858.0,4.32838989]
[1672957555875,4.22385447,16859.0,16858.0,4.92978989]
[1672957557560,4.22385447,16859.0,16858.0,4.62908989]
[1672957557775,4.22385447,16859.0,16858.0,4.92978989]
[1672957558612,4.22385447,16859.0,16858.0,4.32838989]
[1672957558933,4.22385447,16859.0,16858.0,4.92978989]
[1672957560718,4.22385447,16859.0,16858.0,4.32838989]
[1672957561240,4.22385447,16859.0,16858.0,4.92978989]
[1672957563029,4.22385447,16859.0,16858.0,4.32838989]
[1672957563238,4.22385447,16859.0,16858.0,4.92978989]
[1672957568815,4.22385447,16859.0,16858.0,4.32838989]
[1672957569331,4.22385447,16859.0,16858.0,4.92978989]
[1672957569963,4.22385447,16859.0,16858.0,5.10749329]
[1672957570278,4.22385447,16859.0,16858.0,4.92978989]
[1672957571231,4.22385447,16859.0,16858.0,5.10749329]
[1672957571435,4.22385447,16859.0,16858.0,5.59830773]
[1672957571644,4.22385447,16859.0,16858.0,5.10749329]
[1672957572069,4.22385447,16859.0,16858.0,4.92978989]
[1672957572272,4.22385447,16859.0,16858.0,5.10749329]
[1672957572595,4.22385447,16859.0,16858.0,4.92978989]
[1672957573445,4.22385447,16859.0,16858.0,5.10749329]
[1672957574599,4.22385447,16859.0,16858.0,4.92978989]
[1672957575006,4.22385447,16859.0,16858.0,4.92972681]
[1672957575221,4.22385447,16859.0,16858.0,5.5982442]
[1672957575432,4.22385447,16859.0,16858.0,4.92972681]
[1672957582889,4.22385447,16859.0,16858.0,4.32832681]
[1672957583101,4.22385447,16859.0,16858.0,5.10743021]
[1672957583857,4.22385447,16859.0,16858.0,5.59824339]
[1672957585120,4.22385447,16859.0,16858.0,5.10743021]
[1672957585324,4.22385447,16859.0,16858.0,5.5982437]
[1672957585540,4.22385447,16859.0,16858.0,4.92972681]
[1672957586271,4.22385447,16859.0,16858.0,5.10743021]
[1672957586689,4.22385447,16859.0,16858.0,5.59824388]
[1672957587010,4.22385447,16859.0,16858.0,4.50603021]
[1672957587212,4.22385447,16859.0,16858.0,5.10743021]
[1672957588476,4.22385447,16859.0,16858.0,5.59824269]
[1672957589111,4.22385447,16859.0,16858.0,5.59824415]
[1672957590053,4.22385447,16859.0,16858.0,5.10743021]
[1672957590263,4.22385447,16859.0,16858.0,5.59824395]
[1672957590475,4.22385447,16859.0,16858.0,5.42054055]
[1672957590684,4.22385447,16859.0,16858.0,5.10743021]
[1672957590889,4.22385447,16859.0,16858.0,4.92972681]
[1672957592684,4.22385447,16859.0,16858.0,5.10743021]
[1672957594263,4.22385447,16859.0,16858.0,4.50603021]
[1672957594473,4.22385447,16859.0,16858.0,5.10743021]
[1672957595210,4.22385447,16859.0,16858.0,5.59823617]
[1672957595632,4.22385447,16859.0,16858.0,5.59823494]
[1672957596053,4.22385447,16859.0,16858.0,4.99683494]
[1672957596258,4.22385447,16859.0,16858.0,5.10743021]
[1672957596577,4.22385447,16859.0,16858.0,5.59823483]
[1672957596992,4.22385447,16859.0,16858.0,5.10743021]
[1672957597203,4.22385447,16859.0,16858.0,5.59823258]
[1672957597415,4.22385447,16859.0,16858.0,5.59823341]
[1672957597620,4.22385447,16859.0,16858.0,5.59823375]
[1672957597827,4.22385447,16859.0,16858.0,4.92972681]
[1672957598467,4.22385447,16859.0,16858.0,5.10743021]
[1672957599520,4.22385447,16859.0,16858.0,5.59824162]
[1672957600779,4.22385447,16859.0,16858.0,4.99684162]
[1672957600989,4.22385447,16859.0,16858.0,5.59824162]
[1672957602149,4.22385447,16859.0,16858.0,4.99684162]
[1672957602361,4.22385447,16859.0,16858.0,5.59824162]
[1672957603084,4.22385447,16859.0,16858.0,4.92972681]
[1672957603304,4.22385447,16859.0,16858.0,5.10743021]
[1672957603821,4.22385447,16859.0,16858.0,5.59824193]
[1672957604453,4.22385447,16859.0,16858.0,5.10743021]
[1672957604873,4.22385447,16859.0,16858.0,5.59824282]
[1672957605509,4.22385447,16859.0,16858.0,4.92972681]
[1672957605930,4.22385447,16859.0,16858.0,4.32832681]
[1672957606351,4.22385447,16859.0,16858.0,4.92972681]
[1672957608460,4.22385447,16859.0,16858.0,5.10743021]
[1672957609086,4.22385447,16859.0,16858.0,4.50603021]
[1672957609304,4.22385447,16859.0,16858.0,5.10743021]
[1672957609504,4.22385447,16859.0,16858.0,4.92972681]
[1672957613183,4.22385447,16859.0,16858.0,5.10743021]
[1672957613812,4.22385447,16859.0,16858.0,4.50603021]
[1672957614031,4.22385447,16859.0,16858.0,4.92972681]
[1672957615705,4.22385447,16859.0,16858.0,5.10743021]
[1672957616022,4.22385447,16859.0,16858.0,4.92972681]
[1672957617280,4.22385447,16859.0,16858.0,5.10743021]
[1672957617490,4.22385447,16859.0,16858.0,5.46501191]
[1672957621491,4.22385447,16859.0,16858.0,5.46486028]
[1672957622123,4.22385447,16859.0,16858.0,5.16416028]
[1672957622336,4.22385447,16859.0,16858.0,5.46486028]
[1672957623500,4.22385447,16859.0,16858.0,4.86346028]
[1672957623811,4.22385447,16859.0,16858.0,5.5981771]
[1672957624236,4.22385447,16859.0,16858.0,5.46486028]
[1672957625694,4.22385447,16859.0,16858.0,5.16416028]
[1672957625910,4.22385447,16859.0,16858.0,4.86346028]
[1672957626230,4.22385447,16859.0,16858.0,5.46486028]
[1672957626641,4.22385447,16859.0,16858.0,4.86346028]
[1672957626963,4.22385447,16859.0,16858.0,5.46486028]
[1672957628108,4.22385447,16859.0,16858.0,5.59818286]
[1672957629494,4.22385447,16859.0,16858.0,5.46486028]
[1672957630442,4.22385447,16859.0,16858.0,5.59817806]
[1672957630755,4.22385447,16859.0,16858.0,4.9296591]
[1672957630966,4.22385447,16859.0,16858.0,5.1073625]
[1672957632119,4.22385447,16859.0,16858.0,5.5981689]
[1672957632948,4.22385447,16859.0,16858.0,5.46485112]
[1672957633592,4.22385447,16859.0,16858.0,4.86345112]
[1672957634010,4.22385447,16859.0,16858.0,5.59818297]
[1672957634743,4.22385447,16859.0,16858.0,4.92967317]
[1672957635274,4.22385447,16859.0,16858.0,5.01857416]
[1672957635484,4.22385447,16859.0,16858.0,4.92967317]
[1672957636010,4.22385447,16859.0,16858.0,5.10737657]
[1672957636327,4.22385447,16859.0,16858.0,4.92967317]
[1672957636537,4.22385447,16859.0,16858.0,5.10737657]
[1672957637273,4.22485447,16859.0,16858.0,5.10637657]
[1672957637681,4.22485447,16859.0,16858.0,4.80567657]
[1672957637892,4.22485447,16859.0,16858.0,5.5971885]
[1672957639164,4.22485447,16859.0,16858.0,4.92867317]
[1672957639363,4.22485447,16859.0,16858.0,5.10637657]
[1672957640332,4.22485447,16859.0,16858.0,4.92867317]
[1672957640529,4.22485447,16859.0,16858.0,5.10637657]
[1672957640734,4.22385447,16859.0,16858.0,4.92967317]
[1672957642534,4.22385447,16859.0,16858.0,4.32827317]
[1672957642946,4.22385447,16859.0,16858.0,4.92967317]
[1672957645791,4.22385447,16859.0,16858.0,4.32827317]
[1672957645999,4.22385447,16859.0,16858.0,4.92967317]
[1672957646739,4.22385447,16859.0,16858.0,5.01857093]
[1672957647060,4.22385447,16859.0,16858.0,4.92967317]
[1672957650723,4.22385447,16859.0,16858.0,5.59819006]
[1672957651360,4.22385447,16859.0,16858.0,5.46485821]
[1672957660921,4.22385447,16859.0,16858.0,4.86345821]
[1672957661135,4.22385447,16859.0,16858.0,5.46485821]
[1672957661761,4.22385447,16859.0,16858.0,4.86345821]
[1672957661977,4.22385447,16859.0,16858.0,5.46485821]
[1672957666823,4.19309667,16859.0,16858.0,5.46485821]
[1672957668817,4.19309667,16859.0,16858.0,5.59814147]
[1672957669437,4.19309667,16859.0,16858.0,5.46485821]
[1672957675655,4.19309667,16859.0,16858.0,4.86345821]
[1672957675966,4.19309667,16859.0,16858.0,5.46485821]
[1672957680693,4.19309667,16859.0,16858.0,4.86345821]
[1672957680910,4.19309667,16859.0,16858.0,5.46485821]
[1672957684484,4.19309667,16859.0,16858.0,4.86345821]
[1672957684696,4.19309667,16859.0,16858.0,5.46485821]
[1672957685116,4.19309667,16859.0,16858.0,4.86345821]
[1672957685332,4.19309667,16859.0,16858.0,5.46485821]
[1672957685543,4.19309667,16859.0,16858.0,4.86345821]
[1672957686065,4.19309667,16859.0,16858.0,5.46485821]
[1672957686697,4.19309667,16859.0,16858.0,4.86345821]
[1672957687007,4.19309667,16859.0,16858.0,5.46485821]
[1672957687849,4.19309667,16859.0,16858.0,4.86345821]
[1672957688171,4.19309667,16859.0,16858.0,5.46485821]
[1672957689007,4.19309667,16859.0,16858.0,4.86345821]
[1672957689211,4.19309667,16859.0,16858.0,5.46485821]
[1672957690266,4.19309667,16859.0,16858.0,5.509311]
[1672957690478,4.16365667,16859.0,16858.0,5.509311]
[1672957690802,4.16365667,16859.0,16858.0,6.12278427]
[1672957691008,4.16365667,16859.0,16858.0,5.90062808]
[1672957691853,4.16365667,16859.0,16858.0,6.12266664]
[1672957692477,4.16365667,16859.0,16858.0,5.90062808]
[1672957693842,4.16365667,16859.0,16858.0,6.12260034]
[1672957695107,4.16365667,16859.0,16858.0,5.52120034]
[1672957695311,4.16365667,16859.0,16858.0,5.50912707]
[1672957695522,4.16365667,16859.0,16858.0,6.12260034]
[1672957696150,4.16365667,16859.0,16858.0,5.50912707]
[1672957698794,4.16365667,16859.0,16858.0,5.6866581]
[1672957699316,4.16365667,16859.0,16858.0,5.50912707]
[1672957703412,4.16365667,16859.0,16858.0,6.12256827]
[1672957710779,4.16365667,16859.0,16858.0,5.50912707]
[1672957712147,4.16365667,16859.0,16858.0,6.12255322]
[1672957714139,4.16365667,16859.0,16858.0,5.50912707]
[1672957716239,4.16365667,16859.0,16858.0,4.90772707]
[1672957716449,4.16365667,16859.0,16858.0,5.50912707]
[1672957716868,4.16365667,16859.0,16858.0,6.12255674]
[1672957717923,4.16365667,16859.0,16858.0,5.52115674]
[1672957718139,4.16365667,16859.0,16858.0,6.12255674]
[1672957719197,4.16365667,16859.0,16858.0,5.52115674]
[1672957719408,4.16365667,16859.0,16858.0,6.12255674]
[1672957721724,4.16365667,16859.0,16858.0,5.90058448]
[1672957722347,4.16365667,16859.0,16858.0,6.12241772]
[1672957722767,4.16365667,16859.0,16858.0,5.90058448]
[1672957723406,4.16365667,16859.0,16858.0,6.12243902]
[1672957723827,4.16365667,16859.0,16858.0,5.52103902]
[1672957724566,4.16365667,16859.0,16858.0,5.90058448]
[1672957725614,4.16365667,16859.0,16858.0,6.12246912]
[1672957725823,4.16365667,16859.0,16858.0,5.90058448]
[1672957726137,4.16365667,16859.0,16858.0,6.12250822]
[1672957726552,4.16365667,16859.0,16858.0,5.52110822]
[1672957726764,4.16365667,16859.0,16858.0,5.90058448]
[1672957727189,4.16365667,16859.0,16858.0,5.29918448]
[1672957727505,4.16365667,16859.0,16858.0,5.90058448]
[1672957727714,4.16365667,16859.0,16858.0,5.29918448]
[1672957727923,4.16365667,16859.0,16858.0,5.90058448]
[1672957728874,4.16365667,16859.0,16858.0,5.29918448]
[1672957729075,4.16365667,16859.0,16858.0,5.90058448]
[1672957729498,4.16365667,16859.0,16858.0,5.29918448]
[1672957729705,4.16365667,16859.0,16858.0,5.90058448]
[1672957731496,4.16365667,16859.0,16858.0,5.29918448]
[1672957731813,4.16365667,16859.0,16858.0,5.90058448]
[1672957732963,4.16365667,16859.0,16858.0,5.29918448]
[1672957733282,4.16365667,16859.0,16858.0,5.90058448]
[1672957733486,4.16365667,16859.0,16858.0,6.16700349]
[1672957734126,4.16365667,16859.0,16858.0,5.29918448]
[1672957734434,4.16365667,16859.0,16858.0,5.90058448]
[1672957735693,4.16365667,16859.0,16858.0,6.16700349]
[1672957736116,4.16365667,16859.0,16858.0,6.16688301]
[1672957736325,4.16365667,16859.0,16858.0,5.900464]
[1672957736951,4.16365667,16859.0,16858.0,6.16688301]
[1672957738744,4.16365667,16859.0,16858.0,5.56548301]
[1672957738955,4.16365667,16859.0,16858.0,6.16688301]
[1672957741803,4.16365667,16859.0,16858.0,5.56548301]
[1672957742002,4.16365667,16859.0,16858.0,6.16688301]
[1672957745887,4.16365667,16859.0,16858.0,5.86618301]
[1672957746103,4.16365667,16859.0,16858.0,6.16688301]
[1672957747888,4.16365667,16859.0,16858.0,5.56548301]
[1672957748106,4.16365667,16859.0,16858.0,6.16688301]
[1672957748727,4.16365667,16859.0,16858.0,5.86618301]
[1672957748946,4.16365667,16859.0,16858.0,6.16688301]
[1672957751469,4.16365667,16859.0,16858.0,5.56548301]
[1672957751993,4.16365667,16859.0,16858.0,6.16688301]
[1672957753250,4.16365667,16859.0,16858.0,5.56548301]
[1672957753782,4.16365667,16859.0,16858.0,6.16688301]
[1672957753993,4.16365667,16859.0,16858.0,5.56548301]
[1672957754206,4.16365667,16859.0,16858.0,6.16688301]
[1672957755456,4.16365667,16859.0,16858.0,5.56548301]
[1672957755779,4.16365667,16859.0,16858.0,6.16688301]
[1672957756199,4.16365667,16859.0,16858.0,5.56548301]
[1672957756409,4.16365667,16859.0,16858.0,6.16688301]
[1672957756929,4.16365667,16859.0,16858.0,5.56548301]
[1672957757142,4.16365667,16859.0,16858.0,6.16688301]
[1672957761664,4.16365667,16859.0,16858.0,5.56548301]
[1672957761874,4.16365667,16859.0,16858.0,6.16688301]
[1672957762186,4.16365667,16859.0,16858.0,5.86618301]
[1672957762394,4.16365667,16859.0,16858.0,5.56548301]
[1672957762822,4.16365667,16859.0,16858.0,6.16688301]
[1672957765988,4.16365667,16859.0,16858.0,5.56548301]
[1672957766200,4.16365667,16859.0,16858.0,6.16688301]
[1672957766624,4.16365667,16859.0,16858.0,5.56548301]
[1672957767035,4.16365667,16859.0,16858.0,6.16688301]
[1672957767988,4.16365667,16859.0,16858.0,5.56548301]
[1672957768196,4.16365667,16859.0,16858.0,6.16688301]
[1672957770514,4.16365667,16859.0,16858.0,5.56548301]
[1672957771138,4.16365667,16859.0,16858.0,6.16688301]
[1672957771456,4.16365667,16859.0,16858.0,5.86618301]
[1672957771671,4.16365667,16859.0,16858.0,6.16688301]
[1672957773663,4.16365667,16859.0,16858.0,5.56548301]
[1672957773868,4.16365667,16859.0,16858.0,6.16688301]
[1672957775977,4.16365667,16859.0,16858.0,5.56548301]
[1672957776599,4.16365667,16859.0,16858.0,6.16688301]
[1672957777444,4.16365667,16859.0,16858.0,5.56548301]
[1672957777648,4.16365667,16859.0,16858.0,6.16688301]
[1672957778294,4.16365667,16859.0,16858.0,5.56548301]
[1672957778497,4.16365667,16859.0,16858.0,6.16688301]
[1672957781338,4.16365667,16859.0,16858.0,5.900464]
[1672957784062,4.16365667,16859.0,16858.0,5.299064]
[1672957784387,4.16365667,16859.0,16858.0,5.900464]
[1672957786595,4.16365667,16859.0,16858.0,5.299064]
[1672957786804,4.16365667,16859.0,16858.0,5.900464]
[1672957787542,4.15207467,16859.0,16858.0,5.900464]
[1672957788168,4.15207467,16859.0,16858.0,6.12266315]
[1672957788907,4.15207467,16859.0,16858.0,5.52126315]
[1672957789118,4.15207467,16859.0,16858.0,6.12266315]
[1672957793314,4.12289487,16859.0,16858.0,6.12266315]
[1672957796575,4.12289487,16859.0,16858.0,5.52126315]
[1672957796883,4.12289487,16859.0,16858.0,6.12266315]
[1672957798896,4.12289487,16859.0,16858.0,5.52126315]
[1672957799106,4.12289487,16859.0,16858.0,6.12266315]
[1672957799310,4.12289487,16859.0,16858.0,5.52126315]
[1672957799632,4.12289487,16859.0,16858.0,6.12266315]
[1672957800896,4.12289487,16859.0,16858.0,5.50923348]
[1672957806141,4.12289487,16859.0,16858.0,6.12268931]
[1672957806564,4.12289487,16859.0,16858.0,4.90783348]
[1672957806777,4.12289487,16859.0,16858.0,5.50923348]
[1672957807508,4.12289487,16859.0,16858.0,6.12268971]
[1672957807708,4.12289487,16859.0,16858.0,5.50923348]
[1672957808338,4.12289487,16859.0,16858.0,6.12269072]
[1672957808550,4.12289487,16859.0,16858.0,5.52129072]
[1672957808764,4.12289487,16859.0,16858.0,6.12269072]
[1672957808980,4.12289487,16859.0,16858.0,5.52129072]
[1672957809715,4.12289487,16859.0,16858.0,6.12269072]
[1672957810861,4.12289487,16859.0,16858.0,5.52129072]
[1672957811067,4.12289487,16859.0,16858.0,6.12269072]
[1672957811281,4.12289487,16859.0,16858.0,6.12269235]
[1672957817591,4.12289487,16859.0,16858.0,5.9004932]
[1672957819594,4.12289487,16859.0,16858.0,5.2990932]
[1672957819792,4.12289487,16859.0,16858.0,5.9004932]
[1672957822530,4.12289487,16859.0,16858.0,5.2990932]
[1672957822740,4.12289487,16859.0,16858.0,5.9004932]
[1672957826110,4.12289487,16859.0,16858.0,5.2990932]
[1672957826636,4.12289487,16859.0,16858.0,5.9004932]
[1672957827051,4.12289487,16859.0,16858.0,5.2990932]
[1672957827267,4.12289487,16859.0,16858.0,5.9004932]
[1672957827890,4.12289487,16859.0,16858.0,5.2990932]
[1672957828101,4.12289487,16859.0,16858.0,5.9004932]
[1672957828313,4.12289487,16859.0,16858.0,5.90046288]
[1672957829469,4.12289487,16859.0,16858.0,6.12260491]
[1672957830097,4.12289487,16859.0,16858.0,5.50917636]
[1672957830310,4.12289487,16859.0,16858.0,5.28703433]
[1672957831576,0.003,16859.0,16858.0,5.28703433]
[1672957832000,0.003,16859.0,16858.0,5.46479303]
[1672957841028,0.003,16859.0,16858.0,4.86339303]
[1672957841451,0.003,16859.0,16858.0,5.46479303]
[1672957841874,0.003,16859.0,16858.0,4.86339303]
[1672957842079,0.003,16859.0,16858.0,5.46479303]
[1672957844384,0.003,16859.0,16858.0,4.86339303]
[1672957844812,0.003,16859.0,16858.0,5.46479303]
[1672957845017,0.003,16859.0,16858.0,9.23479303]
[1672957845864,0.003,16859.0,16858.0,9.36804094]
[1672957846079,0.003,16859.0,16858.0,8.69946875]
[1672957847764,0.003,16859.0,16858.0,8.69927282]
[1672957848912,0.003,16859.0,16858.0,8.78811279]
[1672957849130,0.003,16859.0,16858.0,8.65486488]
[1672957851965,0.003,16859.0,16858.0,8.56602491]
[1672957852807,0.003,16859.0,16858.0,8.65486488]
[1672957853859,1.01998344,16861.0,16858.0,8.56602491]
[1672957854063,1.01998344,16861.0,16858.0,8.65486488]
[1672957855011,1.01998344,16861.0,16858.0,8.51586488]
[1672957855231,1.02298344,16861.0,16859.0,0.3007]
[1672957856582,1.02298344,16861.0,16859.0,0.4397]
[1672957865528,1.02298344,16861.0,16860.0,4.05562491]
[1672957866675,1.01998344,16861.0,16860.0,4.05562491]
[1672957866886,1.02298344,16861.0,16860.0,4.19562491]
[1672957870997,0.723,16861.0,16860.0,4.19562491]
[1672957880883,0.72,16861.0,16860.0,4.19562491]
[1672957882035,0.717,16861.0,16860.0,4.19562491]
[1672957882464,0.714,16861.0,16860.0,4.19562491]
[1672957883301,0.711,16861.0,16860.0,4.19562491]
[1672957883507,0.708,16861.0,16860.0,4.19562491]
[1672957884246,0.705,16861.0,16860.0,4.19562491]
[1672957884775,0.702,16861.0,16860.0,4.19562491]
[1672957885299,0.699,16861.0,16860.0,4.19562491]
[1672957885619,0.696,16861.0,16860.0,4.19562491]
[1672957886349,0.693,16861.0,16860.0,4.19562491]
[1672957886762,0.69,16861.0,16860.0,4.19562491]
[1672957887394,0.687,16861.0,16860.0,4.19562491]
[1672957887719,0.684,16861.0,16860.0,4.19562491]
[1672957889287,0.684,16861.0,16860.0,4.28446488]
[1672957889709,0.684,16861.0,16860.0,4.58516488]
[1672957891074,0.7,16862.0,16860.0,4.58516488]
[1672957893081,0.7,16862.0,16860.0,4.49632491]
[1672957893290,0.702,16862.0,16860.0,4.45032491]
[1672957894654,0.702,16862.0,16860.0,4.14962491]
[1672957894865,0.702,16862.0,16860.0,4.45032491]
[1672957895494,0.7,16862.0,16861.0,0.7]
[1672957896749,0.7,16862.0,16861.0,0.721]
[1672957899585,0.6112,16863.0,16861.0,0.721]
[1672957899914,1.3112,16863.0,16861.0,0.721]
[1672957901582,1.3482,16863.0,16861.0,0.701]
[1672957904954,1.6489,16863.0,16861.0,0.701]
[1672957906532,1.3482,16863.0,16861.0,0.701]
[1672957906857,1.6489,16863.0,16861.0,0.701]
[1672957908320,1.6489,16863.0,16862.0,4.05562491]
[1672957909152,1.3462,16863.0,16862.0,4.06362491]
[1672957915678,1.6469,16863.0,16862.0,4.06362491]
[1672957916735,1.3462,16863.0,16862.0,4.06362491]
[1672957917152,1.6469,16863.0,16862.0,4.06362491]
[1672957919252,1.3462,16863.0,16862.0,4.06362491]
[1672957919993,1.6469,16863.0,16862.0,4.06362491]